bitfinex-derivatives/quotes_ETHF0:USTF0_20250624
["timestamp","ask_amount","ask_price","bid_price","bid_amount"]
[1750789494940,36.5092062,2443.7,2443.6,0.21]
[1750789496444,31.48382269,2443.7,2443.6,0.21]
[1750789499044,31.48382269,2443.7,2443.6,2.099]
[1750789499247,31.48382269,2443.7,2443.6,0.21]
[1750789499952,33.38872269,2443.7,2443.6,0.21]
[1750789500251,5.02782269,2443.7,2443.6,0.21]
[1750789500548,31.46782269,2443.7,2443.6,0.21]
[1750789502351,30.81342269,2443.7,2443.6,4.83412]
[1750789502549,30.81342269,2443.7,2443.6,6.85092]
[1750789502939,31.46782269,2443.7,2443.6,6.85092]
[1750789503553,31.46782269,2443.7,2443.6,6.1965]
[1750789506454,5.02782269,2443.7,2443.6,6.1965]
[1750789506661,31.45582269,2443.7,2443.6,6.1965]
[1750789506952,31.45582269,2443.7,2443.6,6.85092]
[1750789507457,31.45582269,2443.7,2443.6,6.1965]
[1750789507943,1.82002269,2443.7,2443.6,6.85092]
[1750789508149,1.82002269,2443.7,2443.6,6.1965]
[1750789508653,1.82002269,2443.7,2443.6,6.85092]
[1750789509244,1.16562269,2443.7,2443.6,6.85092]
[1750789509952,0.65426,2444.3,2443.7,2.29038]
[1750789510160,26.412,2444.2,2444.1,3.86209]
[1750789510458,26.41,2444.3,2444.2,2.59925]
[1750789510651,26.41,2444.3,2444.2,10.01515]
[1750789510846,26.41,2444.3,2444.2,11.98755]
[1750789511043,0.65423,2444.3,2444.2,11.3333]
[1750789511848,0.65423,2444.3,2444.2,11.98756]
[1750789512451,27.06423,2444.4,2444.3,0.65423]
[1750789512756,26.41,2444.4,2444.3,3.42013]
[1750789513752,3.69318351,2444.5,2444.4,0.65421]
[1750789513953,4.87182288,2445.1,2444.7,0.65413]
[1750789513954,5.63752769,2444.9,2444.7,0.65413]
[1750789514150,3.2078,2444.9,2444.8,0.6541]
[1750789514355,29.6048,2444.9,2444.8,6.5922]
[1750789514652,3.86187,2444.9,2444.8,6.5922]
[1750789514962,29.6038,2444.9,2444.8,7.2463]
[1750789515658,26.395,2445.0,2444.9,0.65407]
[1750789515860,26.39,2445.1,2445.0,0.65402]
[1750789516053,3.03898351,2445.2,2445.1,0.65402]
[1750789516257,3.69297351,2445.2,2445.1,0.23]
[1750789516664,6.24678351,2445.2,2445.1,2.3332]
[1750789516959,32.63478351,2445.2,2445.1,2.98722]
[1750789517155,3.2078,2445.2,2445.1,2.98722]
[1750789517358,3.2078,2445.2,2445.1,2.3332]
[1750789517359,32.63278351,2445.2,2445.1,2.3332]
[1750789517565,33.28677351,2445.2,2445.1,2.3332]
[1750789517960,33.28677351,2445.2,2445.1,0.23]
[1750789518459,0.65413,2444.7,2444.5,2.70667]
[1750789518662,0.65413,2444.7,2444.5,5.63]
[1750789518663,3.69313351,2444.6,2444.5,5.63]
[1750789519059,5.69413351,2444.6,2444.5,5.63]
[1750789519759,3.69313351,2444.6,2444.5,5.63]
[1750789520366,0.65415,2444.6,2444.5,5.63]
[1750789521769,3.86195,2444.6,2444.5,5.63]
[1750789522159,5.01688621,2444.6,2444.5,5.63]
[1750789523467,3.86195,2444.6,2444.5,5.63]
[1750789524359,5.01655115,2444.6,2444.5,5.63]
[1750789528770,0.65431,2444.1,2443.9,0.65433]
[1750789528964,0.65431,2444.0,2443.9,8.4099]
[1750789529174,0.65431,2444.0,2443.9,10.3493]
[1750789529468,27.00531,2444.1,2443.9,11.00364]
[1750789529669,0.65431,2444.0,2443.9,10.3493]
[1750789529867,0.65431,2444.0,2443.9,11.00364]
[1750789530067,26.351,2444.1,2444.0,0.65431]
[1750789530269,28.1615595,2444.1,2444.0,4.38371]
[1750789530473,27.00529,2444.1,2444.0,4.38371]
[1750789530667,26.351,2444.1,2444.0,4.38371]
[1750789530871,27.00529,2444.1,2444.0,4.38371]
[1750789531363,26.351,2444.1,2444.0,4.38371]
[1750789531762,26.99924,2444.3,2444.2,0.65426]
[1750789531957,28.15617958,2444.3,2444.2,3.15426]
[1750789532560,1.15693958,2444.3,2444.2,3.15426]
[1750789532766,1.15693958,2444.3,2444.2,8.15426]
[1750789532970,0.65412,2444.8,2444.7,0.65413]
[1750789533174,29.5448,2445.1,2444.7,3.22]
[1750789533375,0.65407,2444.9,2444.8,1.9458]
[1750789533566,0.65407,2444.9,2444.8,2.6458]
[1750789534871,0.65407,2444.9,2444.8,3.2999]
[1750789535574,0.65407,2444.9,2444.8,2.6458]
[1750789536373,0.65407,2444.9,2444.8,0.7]
[1750789537775,6.3963132,2444.9,2444.8,0.7]
[1750789537964,8.3384132,2444.9,2444.8,0.7]
[1750789538275,59.8073432,2444.9,2443.3,4.07811272]
[1750789538570,0.65445,2443.5,2443.4,3.9708]
[1750789538871,26.32,2443.5,2443.4,0.85]
[1750789539173,26.97445,2443.5,2443.4,0.85]
[1750789539371,26.32,2443.5,2443.4,0.85]
[1750789539967,3.9638,2444.0,2443.4,0.85]
[1750789539968,0.65433,2444.0,2443.4,5.85]
[1750789540173,3.2078,2443.9,2443.5,2.0545]
[1750789540368,26.97327,2444.2,2443.9,0.65434]
[1750789540567,26.97327,2444.2,2444.0,2.0545]
[1750789540869,3.86202,2444.4,2444.1,0.65427]
[1750789541070,26.318,2444.3,2444.2,2.0545]
[1750789541271,26.318,2444.3,2444.2,2.1445]
[1750789541465,0.65423,2444.3,2444.2,2.1445]
[1750789541677,26.96923,2444.3,2444.2,2.1445]
[1750789544976,28.11708544,2444.3,2444.2,2.1445]
[1750789545274,28.11708544,2444.3,2444.2,0.09]
[1750789545474,0.65429,2444.1,2444.0,1.9163]
[1750789545676,0.65429,2444.1,2444.0,2.0163]
[1750789545881,1.80214544,2444.1,2444.0,0.1]
[1750789546373,8.04788715,2444.1,2444.0,0.1]
[1750789548378,10.75497732,2444.1,2444.0,0.1]
[1750789548970,19.00247732,2444.1,2443.6,1.9847]
[1750789549165,0.6544,2443.7,2443.6,1.38]
[1750789549374,28.09744951,2443.7,2443.6,1.38]
[1750789551482,35.36344951,2443.7,2443.6,1.38]
[1750789551669,35.36344951,2443.7,2443.3,4.0363]
[1750789551670,0.65448,2443.4,2443.3,4.0363]
[1750789551979,26.94448,2443.4,2443.3,5.3363]
[1750789553384,26.94448,2443.4,2443.3,1.3]
[1750789555784,26.286,2443.6,2443.3,1.3]
[1750789555972,26.286,2443.6,2443.4,2.0145]
[1750789556171,26.94042,2443.6,2443.5,2.0627]
[1750789556479,26.94042,2443.6,2443.5,5.1927]
[1750789556680,26.94042,2443.6,2443.5,7.1001]
[1750789557281,26.94042,2443.6,2443.5,5.1927]
[1750789557580,26.94042,2443.6,2443.5,3.13]
[1750789560375,28.08721779,2443.6,2443.5,3.13]
[1750789560678,26.94042,2443.6,2443.5,3.13]
[1750789562677,26.265,2443.6,2443.5,3.13]
[1750789562875,26.91942,2443.6,2443.5,3.13]
[1750789563378,26.265,2443.6,2443.5,3.78445]
[1750789564081,26.91942,2443.6,2443.5,3.13]
[1750789564979,26.91942,2443.6,2443.5,3.78445]
[1750789565681,0.65442,2443.6,2443.5,3.78445]
[1750789566981,26.91141,2443.7,2443.6,0.65442]
[1750789567183,28.06073582,2443.7,2443.6,8.19952]
[1750789567888,1.14932582,2443.7,2443.6,8.19952]
[1750789568079,3.86217,2443.8,2443.7,0.6544]
[1750789568280,4.35775558,2443.8,2443.7,8.9101]
[1750789568479,4.35775558,2443.8,2443.7,10.9172]
[1750789568982,0.65433,2444.0,2443.9,0.65434]
[1750789569289,1.15007196,2444.0,2443.9,3.87434]
[1750789569480,1.80438196,2444.0,2443.9,3.87434]
[1750789570285,1.15007196,2444.0,2443.9,3.87434]
[1750789570690,26.89623,2444.3,2444.2,0.65426]
[1750789570888,26.89623,2444.3,2444.2,2.43426]
[1750789570889,28.04708086,2444.3,2444.2,2.43426]
[1750789571284,1.80508086,2444.3,2444.2,2.43426]
[1750789571589,28.04608086,2444.3,2444.2,2.43426]
[1750789572482,1.15085086,2444.3,2444.2,2.43426]
[1750789572988,30.09794,2444.7,2444.2,6.78]
[1750789573192,30.09594,2444.7,2444.6,0.65415]
[1750789573394,30.09594,2444.7,2444.6,0.77415]
[1750789573791,3.86194,2444.7,2444.6,0.77415]
[1750789575089,3.86194,2444.7,2444.6,0.12]
[1750789575284,3.86194,2444.7,2444.6,2.1963]
[1750789575490,3.86194,2444.7,2444.6,0.12]
[1750789576390,3.86194,2444.7,2444.6,0.77415]
[1750789577192,3.86194,2444.7,2444.6,0.12]
[1750789578596,3.86194,2444.7,2444.6,0.77415]
[1750789578796,3.86194,2444.7,2444.6,0.12]
[1750789579297,3.86194,2444.7,2444.6,2.1622]
[1750789580395,0.65414,2444.7,2444.6,2.1622]
[1750789580989,0.65414,2444.7,2444.6,0.12]
[1750789582289,0.65412,2444.8,2444.6,0.77415]
[1750789582492,26.85812,2444.8,2444.7,0.65413]
[1750789582692,26.85812,2444.8,2444.7,4.48593]
[1750789582889,0.65409,2444.9,2444.8,0.6541]
[1750789583099,26.85809,2444.9,2444.8,5.2559]
[1750789583601,3.2078,2445.6,2444.8,20.0236]
[1750789583800,33.76277196,2445.9,2445.2,3.2078]
[1750789584000,0.6539,2445.6,2445.5,0.65391]
[1750789584197,0.65388,2445.7,2445.5,1.23391]
[1750789584401,0.65389,2445.6,2445.5,1.23391]
[1750789584601,0.65389,2445.6,2445.5,0.58]
[1750789585800,0.65389,2445.6,2445.5,1.23391]
[1750789586213,0.65389,2445.6,2445.5,0.58]
[1750789587899,7.1467,2445.9,2445.5,3.7878]
[1750789588099,0.65388,2445.7,2445.6,1.9981]
[1750789588396,0.65388,2445.7,2445.6,3.25199]
[1750789588996,0.65385,2445.8,2445.6,2.5981]
[1750789589198,3.2078,2445.9,2445.6,2.5981]
[1750789589406,3.2078,2445.9,2445.8,0.65383]
[1750789589606,3.2078,2445.9,2445.8,3.74383]
[1750789590106,3.86152,2446.3,2445.8,3.09]
[1750789590308,29.3848,2446.3,2445.9,4.0827]
[1750789590606,29.3848,2446.3,2445.9,0.73]
[1750789590607,0.65378,2446.0,2445.9,0.73]
[1750789590802,6.39393804,2446.0,2445.9,0.73]
[1750789591409,8.46233804,2446.0,2445.9,0.73]
[1750789591806,1.63462,2445.8,2445.3,7.162]
[1750789592009,6.186,2445.7,2445.3,12.40594]
[1750789592210,0.65394,2445.4,2445.3,12.40594]
[1750789592406,6.186,2445.7,2445.4,0.65394]
[1750789592608,0.65391,2445.5,2445.4,1.80394]
[1750789592907,4.1176,2445.7,2445.4,1.15]
[1750789593113,0.6539,2445.6,2445.4,1.15]
[1750789593409,2.68548,2445.7,2445.5,2.75091]
[1750789593612,2.68548,2445.7,2445.6,0.65389]
[1750789593806,2.0316,2445.7,2445.6,6.67389]
[1750789594007,26.82583,2445.9,2445.7,0.65385]
[1750789594207,0.65375,2446.1,2445.7,8.0778]
[1750789594407,28.84834,2446.2,2446.0,0.65378]
[1750789594609,2.68534,2446.2,2446.1,0.65375]
[1750789594807,2.0316,2446.2,2446.1,5.94375]
[1750789595213,0.65373,2446.2,2446.1,5.29]
[1750789595410,3.86152,2446.3,2446.1,5.29]
[1750789595616,3.86152,2446.3,2446.2,2.097]
[1750789595818,3.86152,2446.3,2446.2,4.027]
[1750789596111,3.86152,2446.3,2446.2,1.93]
[1750789596415,3.2078,2446.3,2446.2,2.58373]
[1750789596809,3.8615,2446.3,2446.2,1.93]
[1750789598109,9.60165804,2446.3,2446.2,1.93]
[1750789598818,3.8615,2446.3,2446.2,1.93]
[1750789599124,0.6537,2446.3,2446.2,5.1378]
[1750789599423,0.6537,2446.3,2446.2,1.93]
[1750789599822,0.65368,2446.4,2446.2,5.79151]
[1750789600124,0.6537,2446.4,2446.2,5.79151]
[1750789600722,0.6537,2446.4,2446.3,1.9199]
[1750789601021,1.79175384,2446.4,2446.3,0.25]
[1750789602425,3.69135384,2446.4,2446.3,0.25]
[1750789602625,3.69228904,2446.4,2446.3,0.25]
[1750789602823,1.79268904,2446.4,2446.3,0.25]
[1750789603726,1.79268904,2446.4,2446.3,6.0152]
[1750789603727,1.13898904,2446.4,2446.3,6.0152]
[1750789603922,0.5388,2446.5,2446.4,0.65367]
[1750789604125,0.4896,2446.5,2446.4,10.17237]
[1750789604326,0.1475,2446.6,2446.5,0.65365]
[1750789604521,0.1475,2446.6,2446.5,8.87735]
[1750789605426,0.80112,2446.6,2446.5,8.87735]
[1750789605630,0.65362,2446.6,2446.5,8.87735]
[1750789606329,0.65361,2446.7,2446.6,0.65361]
[1750789606631,0.65361,2446.7,2446.6,3.4474]
[1750789607628,0.65361,2446.7,2446.6,1.44]
[1750789607629,1.79410755,2446.7,2446.6,1.44]
[1750789609430,0.6537,2446.3,2446.2,1.9964]
[1750789609633,0.6537,2446.3,2446.2,10.0904]
[1750789611030,0.6537,2446.3,2446.2,10.74413]
[1750789611428,0.65368,2446.4,2446.3,0.65369]
[1750789611635,0.65368,2446.4,2446.3,5.51369]
[1750789612427,1.79711903,2446.4,2446.3,5.51369]
[1750789612734,1.79711903,2446.4,2446.3,4.86]
[1750789613137,1.14343903,2446.4,2446.3,2.11]
[1750789613435,1.79711903,2446.4,2446.3,2.11]
[1750789615834,1.79711903,2446.4,2446.3,2.7637]
[1750789616535,1.14343903,2446.4,2446.3,2.7637]
[1750789616735,1.79710903,2446.4,2446.3,2.7637]
[1750789617941,1.14343903,2446.4,2446.3,2.7637]
[1750789618131,1.79710903,2446.4,2446.3,2.11]
[1750789618633,1.79710903,2446.4,2446.3,2.7637]
[1750789619432,1.14343903,2446.4,2446.3,2.7637]
[1750789619736,1.79710903,2446.4,2446.3,2.11]
[1750789620332,1.79710903,2446.4,2446.3,4.0747]
[1750789620531,1.79710903,2446.4,2446.3,2.11]
[1750789620937,1.14343903,2446.4,2446.3,2.7637]
[1750789624342,1.79710903,2446.4,2446.3,2.11]
[1750789624643,1.14343903,2446.4,2446.3,2.7637]
[1750789624937,1.14343903,2446.4,2446.3,4.8261]
[1750789625737,1.63433,2446.2,2445.4,10.3188]
[1750789625938,4.17519945,2446.1,2446.0,0.65378]
[1750789626144,1.14343903,2446.1,2446.0,1.97]
[1750789626340,1.79718903,2446.1,2446.0,1.97]
[1750789626736,1.79718903,2446.1,2445.7,2.0624]
[1750789626737,0.65383,2445.8,2445.7,2.0624]
[1750789626937,0.65383,2445.8,2445.7,7.3624]
[1750789627243,0.65383,2445.8,2445.7,5.3]
[1750789627546,0.65381,2445.9,2445.8,0.65383]
[1750789627746,0.65381,2445.9,2445.8,7.97913]
[1750789627944,1.80356788,2445.9,2445.8,7.3253]
[1750789628246,1.80356788,2445.9,2445.8,5.31]
[1750789629049,4.8353283,2445.9,2445.8,5.31]
[1750789629346,1.80356788,2445.9,2445.8,5.31]
[1750789629943,1.80356788,2445.9,2445.8,5.96383]
[1750789630244,9.8353283,2445.9,2445.8,5.31]
[1750789630445,1.63463,2445.8,2445.1,6.70671]
[1750789630637,0.65396,2445.4,2445.2,0.65399]
[1750789630836,0.65396,2445.4,2445.2,6.18399]
[1750789631633,0.65397,2445.3,2445.2,5.53]
[1750789631838,0.65396,2445.4,2445.2,6.18399]
[1750789632447,0.65397,2445.3,2445.2,5.53]
[1750789632746,0.65401,2445.2,2445.0,3.2078]
[1750789633050,26.71201,2445.2,2445.0,7.00184]
[1750789633253,0.65402,2445.1,2445.0,7.00184]
[1750789633839,26.712,2445.2,2445.0,7.00184]
[1750789634350,3.68578042,2445.1,2445.0,6.3478]
[1750789634844,3.68578042,2445.1,2445.0,3.14]
[1750789635049,3.68578042,2445.1,2444.6,3.2078]
[1750789635050,12.00605085,2445.1,2444.3,3.2078]
[1750789635246,12.00605085,2445.1,2444.7,0.65412]
[1750789635247,0.65408,2444.9,2444.7,0.65412]
[1750789635447,0.65408,2444.9,2444.7,5.47]
[1750789635652,26.70508,2444.9,2444.7,8.19242]
[1750789636050,0.6541,2444.8,2444.7,5.47]
[1750789636442,5.64086042,2444.8,2444.7,5.47]
[1750789637352,7.58756042,2444.8,2444.7,5.47]
[1750789644655,7.58756042,2444.8,2444.7,5.58187284]
[1750789645755,7.58756042,2444.8,2444.7,4.71693284]
[1750789645940,7.58756042,2444.8,2444.1,1.9322]
[1750789645941,0.65426,2444.2,2444.1,1.9322]
[1750789646149,0.65426,2444.2,2444.1,9.2298]
[1750789646858,26.69225,2444.3,2444.1,9.88407]
[1750789647050,0.65426,2444.2,2444.1,9.88407]
[1750789647552,3.2078,2444.6,2444.1,9.2298]
[1750789647756,0.4899,2444.3,2444.2,0.65426]
[1750789647956,0.4899,2444.3,2444.2,6.45426]
[1750789649654,1.14413,2444.3,2444.2,5.8]
[1750789650251,0.4899,2444.3,2444.2,11.45426]
[1750789651563,0.65415,2444.6,2444.5,0.65416]
[1750789651858,0.65415,2444.6,2444.5,9.6878]
[1750789652256,0.65414,2444.7,2444.6,0.65415]
[1750789652452,0.65414,2444.7,2444.6,11.08095]
[1750789653459,0.65411,2444.8,2444.7,0.65412]
[1750789653659,0.65408,2444.9,2444.8,0.65409]
[1750789653962,0.65408,2444.9,2444.8,9.84189]
[1750789654559,0.65408,2444.9,2444.8,9.1878]
[1750789654755,0.65408,2444.9,2444.8,9.8419]
[1750789655155,0.1476,2445.0,2444.9,0.65407]
[1750789655353,0.1476,2445.0,2444.9,6.04407]
[1750789656453,0.65394,2445.5,2445.0,1.63513]
[1750789656651,1.14421983,2445.4,2445.3,0.65395]
[1750789656856,1.14421983,2445.4,2445.3,8.43805]
[1750789657056,3.86171,2445.6,2445.3,7.7841]
[1750789657263,0.65392,2445.5,2445.4,0.65393]
[1750789657464,0.65392,2445.5,2445.4,6.53393]
[1750789657765,3.43578759,2445.9,2445.4,5.88]
[1750789657966,0.65391,2445.5,2445.4,6.53393]
[1750789658866,0.65391,2445.5,2445.4,6.53392]
[1750789659555,0.1967,2445.6,2445.4,5.88]
[1750789659751,0.65391,2445.5,2445.4,6.53393]
[1750789660162,0.65391,2445.5,2445.4,5.88]
[1750789660361,4.8311587,2445.5,2445.4,5.88]
[1750789661960,4.8311587,2445.5,2445.4,5.3901]
[1750789662267,4.8311587,2445.5,2445.2,0.65398]
[1750789662268,0.65397,2445.3,2445.2,0.65398]
[1750789662559,0.65397,2445.3,2445.2,7.05398]
[1750789662965,0.65397,2445.3,2445.2,6.4]
[1750789663561,3.68573042,2445.3,2445.2,6.4]
[1750789663762,4.83050136,2445.3,2445.2,6.4]
[1750789669776,11.90250136,2445.3,2445.2,6.4]
[1750789672885,23.14206178,2445.3,2445.2,2.44012964]
[1750789673073,1.63506,2445.1,2444.6,3.2078]
[1750789673266,0.65413,2444.7,2444.6,6.9178]
[1750789674080,0.65413,2444.7,2444.6,10.9273]
[1750789674585,0.65413,2444.7,2444.6,7.7195]
[1750789676282,0.65413,2444.7,2444.6,10.9273]
[1750789676470,0.65413,2444.7,2444.6,6.9178]
[1750789676675,0.65421,2444.4,2444.3,3.2078]
[1750789676875,0.65421,2444.4,2444.3,3.9478]
[1750789683494,0.65421,2444.4,2444.3,6.0099]
[1750789685592,0.1968,2444.8,2444.3,6.0099]
[1750789685789,25.951,2444.7,2444.3,6.0099]
[1750789685984,0.65417,2444.6,2444.5,0.65417]
[1750789686193,26.60015,2444.7,2444.6,0.65415]
[1750789686498,0.85091,2444.8,2444.7,0.65413]
[1750789686794,0.1968,2444.8,2444.7,9.02743]
[1750789687391,0.0492,2444.8,2444.7,14.02743]
[1750789687598,25.943,2445.3,2444.9,0.65405]
[1750789687897,25.943,2445.3,2445.0,3.9256]
[1750789687898,0.65402,2445.1,2445.0,3.9256]
[1750789688087,0.65402,2445.1,2445.0,6.4432]
[1750789688289,1.80143024,2445.1,2445.0,4.53]
[1750789690298,1.14741024,2445.1,2445.0,5.18405]
[1750789690593,26.59001,2445.2,2445.0,7.07715]
[1750789691100,26.59001,2445.2,2445.1,2.0599]
[1750789691299,27.73807613,2445.2,2445.1,8.933]
[1750789691493,27.08306613,2445.2,2445.1,9.58702]
[1750789691690,27.73705613,2445.2,2445.1,9.58702]
[1750789692096,27.08306613,2445.2,2445.1,9.58702]
[1750789692294,0.65398,2445.3,2445.1,9.58702]
[1750789692295,0.65395,2445.4,2445.3,0.65397]
[1750789692494,0.65395,2445.4,2445.3,6.71397]
[1750789692690,1.80143898,2445.4,2445.3,6.71397]
[1750789692891,1.14748898,2445.4,2445.3,13.60707]
[1750789693092,25.928,2446.0,2445.7,0.65385]
[1750789693396,1.14781613,2445.9,2445.8,3.8552]
[1750789693596,1.14781613,2445.9,2445.8,6.4252]
[1750789694097,1.80163613,2445.9,2445.8,6.4252]
[1750789694701,4.83339655,2445.9,2445.8,4.5321]
[1750789694900,0.65391,2445.5,2445.4,12.85494]
[1750789695101,0.65391,2445.5,2445.4,18.37494]
[1750789696501,0.6539,2445.6,2445.4,18.37494]
[1750789696701,0.65391,2445.5,2445.4,18.37494]
[1750789696903,0.6539,2445.6,2445.4,18.37494]
[1750789697203,0.65388,2445.7,2445.5,0.65391]
[1750789697507,0.65388,2445.7,2445.6,2.68329]
[1750789697704,0.65388,2445.7,2445.6,5.88329]
[1750789698097,0.65383,2445.8,2445.7,0.65384]
[1750789698299,0.65385,2445.8,2445.7,2.48385]
[1750789698703,0.65383,2445.9,2445.8,0.65383]
[1750789699008,1.79855544,2445.9,2445.8,2.1694]
[1750789699798,1.79855544,2445.9,2445.8,0.14]
[1750789702609,26.55783,2445.9,2445.8,0.14]
[1750789703106,27.70167217,2445.9,2445.8,0.14]
[1750789703309,26.55783,2445.9,2445.8,0.14]
[1750789703606,2.0313,2446.0,2445.9,0.65381]
[1750789703908,0.65374,2446.2,2446.1,0.65375]
[1750789704204,26.55169,2446.4,2446.3,0.6537]
[1750789704509,26.55169,2446.4,2446.3,7.1237]
[1750789704802,26.55169,2446.4,2446.3,6.47]
[1750789705710,26.96027447,2446.4,2446.3,6.47]
[1750789705910,28.10333524,2446.4,2446.3,6.47]
[1750789706109,0.65367,2446.4,2446.3,9.6778]
[1750789706501,26.54467,2446.5,2446.3,10.3315]
[1750789706702,1.9138,2446.7,2446.5,0.65365]
[1750789706907,25.891,2446.6,2446.5,3.44365]
[1750789707104,25.891,2446.6,2446.5,5.36035]
[1750789707306,28.45641,2446.7,2446.6,0.65362]
[1750789707510,26.54259,2446.7,2446.6,0.72362]
[1750789707707,3.68534042,2446.8,2446.6,1.9867]
[1750789707905,26.53858,2446.8,2446.6,2.6403]
[1750789708208,10.12346042,2447.0,2446.6,2.6403]
[1750789708209,5.1796,2447.0,2446.6,5.1945]
[1750789708400,26.53748,2447.2,2447.0,0.6535]
[1750789708600,0.65348,2447.2,2447.0,5.9535]
[1750789708811,5.1796,2447.7,2447.0,8.5078]
[1750789709000,0.6534,2447.5,2447.1,5.9551]
[1750789709196,8.21136042,2447.7,2447.4,0.6534]
[1750789709197,3.2078,2447.7,2447.4,0.6534]
[1750789709408,3.68512042,2447.6,2447.5,1.9532]
[1750789709604,3.68512042,2447.6,2447.5,2.0332]
[1750789711007,3.68512042,2447.6,2447.5,0.08]
[1750789711200,5.73272042,2447.6,2447.5,0.08]
[1750789711610,7.75062042,2447.6,2447.5,0.08]
[1750789712607,0.65349,2447.1,2447.0,3.3478]
[1750789712802,0.65349,2447.1,2447.0,4.9278]
[1750789713311,0.65349,2447.1,2447.0,1.6032]
[1750789713605,14.91079,2447.1,2447.0,1.6032]
[1750789714812,12.89289,2447.1,2447.0,1.6032]
[1750789715010,31.77389,2447.1,2447.0,1.6032]
[1750789715204,28.56609,2447.1,2447.0,1.6032]
[1750789715509,31.77389,2447.1,2447.0,1.6032]
[1750789715813,33.78129,2447.1,2447.0,1.6032]
[1750789716010,38.78129,2447.1,2447.0,1.6032]
[1750789716209,0.65365,2446.5,2446.4,1.9664]
[1750789716506,29.54541042,2446.5,2446.4,0.25]
[1750789716709,3.68541042,2446.5,2446.4,0.25]
[1750789716906,29.54341042,2446.5,2446.4,0.25]
[1750789717801,0.65375,2446.1,2446.0,4.0596]
[1750789718014,0.65375,2446.1,2446.0,9.5396]
[1750789719199,26.50974,2446.2,2446.0,10.19338]
[1750789719398,0.65375,2446.1,2446.0,9.5396]
[1750789720007,0.65375,2446.1,2446.0,11.4898]
[1750789720509,26.51074,2446.2,2446.0,12.14357]
[1750789720707,25.857,2446.2,2446.1,3.86155]
[1750789721005,26.51073,2446.2,2446.1,11.36905]
[1750789721207,0.65373,2446.2,2446.1,11.36905]
[1750789721409,0.65373,2446.2,2446.1,10.7153]
[1750789722712,0.65373,2446.2,2446.1,7.5075]
[1750789725106,0.65373,2446.2,2446.1,8.16125]
[1750789725617,0.65373,2446.2,2446.1,7.5075]
[1750789727112,26.50672,2446.3,2446.1,11.36905]
[1750789727314,0.65372,2446.3,2446.1,11.36905]
[1750789727516,25.839,2446.2,2446.1,11.36905]
[1750789727716,26.49273,2446.2,2446.1,11.36905]
[1750789727913,26.49273,2446.2,2446.1,10.7153]
[1750789728116,0.65373,2446.2,2446.1,10.7153]
[1750789729923,0.65372,2446.3,2446.2,0.65373]
[1750789730108,0.65372,2446.3,2446.2,1.25373]
[1750789730920,26.49169,2446.4,2446.3,0.6537]
[1750789731118,27.63940138,2446.4,2446.3,2.9558]
[1750789731317,26.98571138,2446.4,2446.3,2.9558]
[1750789731615,3.2078,2446.7,2446.4,0.65367]
[1750789731816,1.1480492,2446.6,2446.5,3.8691]
[1750789732011,3.2078,2446.7,2446.6,0.65362]
[1750789732212,5.00950758,2446.7,2446.6,5.33572]
[1750789732515,4.35591758,2446.7,2446.6,5.33572]
[1750789732715,1.80170758,2446.7,2446.6,4.6821]
[1750789733222,0.65359,2446.7,2446.6,5.33572]
[1750789733414,1.14705972,2446.7,2446.6,5.33572]
[1750789734119,1.80064972,2446.7,2446.6,5.33572]
[1750789734522,1.80064972,2446.7,2446.6,4.6821]
[1750789735613,1.80064972,2446.7,2446.6,5.33572]
[1750789735819,0.65357,2446.8,2446.7,0.65357]
[1750789736121,0.65357,2446.8,2446.7,4.70357]
[1750789736521,0.65356,2446.9,2446.7,4.70357]
[1750789737322,26.47653,2447.0,2446.7,4.05]
[1750789737524,25.823,2447.0,2446.9,0.65354]
[1750789737722,26.96982294,2447.0,2446.9,2.17354]
[1750789738219,26.96182294,2447.0,2446.9,2.17354]
[1750789738422,27.61533294,2447.0,2446.9,1.52]
[1750789738620,26.96182294,2447.0,2446.9,3.99914]
[1750789738822,27.61533294,2447.0,2446.9,3.99914]
[1750789739023,27.61533294,2447.0,2446.9,3.3456]
[1750789739618,27.61533294,2447.0,2446.9,1.52]
[1750789740021,33.34887426,2447.0,2446.9,1.52]
[1750789740322,27.61533294,2447.0,2446.9,1.52]
[1750789740515,26.96182294,2447.0,2446.9,2.17354]
[1750789740917,1.14682294,2447.0,2446.9,2.17354]
[1750789741121,26.95682294,2447.0,2446.9,2.17354]
[1750789743430,27.61033294,2447.0,2446.9,1.52]
[1750789743831,26.95682294,2447.0,2446.9,2.17354]
[1750789744430,27.61033294,2447.0,2446.9,2.17354]
[1750789745033,1.80033294,2447.0,2446.9,2.17354]
[1750789745231,27.59833294,2447.0,2446.9,2.17354]
[1750789745725,27.59833294,2447.0,2446.9,1.52]
[1750789747232,30.62885386,2447.0,2446.9,1.52]
[1750789748331,30.62885386,2447.0,2446.9,2.17354]
[1750789748527,26.94482294,2447.0,2446.9,2.17354]
[1750789748723,1.14682294,2447.0,2446.9,2.17354]
[1750789748927,0.65345,2447.3,2447.2,0.65346]
[1750789749230,27.58918979,2447.3,2447.2,4.35346]
[1750789749430,26.93573979,2447.3,2447.2,4.35346]
[1750789749627,27.58916979,2447.3,2447.2,4.35346]
[1750789749821,27.58916979,2447.3,2447.2,3.7]
[1750789750826,1.79916979,2447.3,2447.2,3.7]
[1750789751027,30.61869071,2447.3,2447.2,3.7]
[1750789751335,0.65357,2446.8,2446.7,0.65359]
[1750789751526,0.65357,2446.8,2446.7,3.17359]